[Event "European Women-ch 2023"]
[Site "Petrovac"]
[Date "2023.03.23"]
[Round "6.14"]
[White "Berke, Ana"]
[Black "Manova, Ivana"]
[Result "1-0"]
[ECO "B28"]
[WhiteElo "2107"]
[BlackElo "1923"]
[Annotator "TA"]
[PlyCount "86"]
[EventDate "2023.03.15"]
[EventType "swiss"]
[EventCountry "MNE"]
[SourceTitle "playchess.com"]
[Source "ChessBase"]
[SourceQuality "1"]
[TimeControl "40/5400+30:1800+30"]

{[%evp 10,86,43,26,23,12,25,18,27,22,18,20,22,15,27,25,0,8,20,37,36,34,31,35,30,0,-2,-2,-10,-9,14,13,14,0,17,6,29,20,18,27,24,22,11,8,25,0,0,-21,85,67,55,16,53,0,47,82,36,72,45,54,82,73,241,248,892,866,989,966,4810,4810,4694,4355,1981,1602,1845,1569,1616,1376,2173]} 1. e4 {[%emt 0:00:05]} c5 {[%emt 0:00:44]} 2. Nf3 {[%emt 0:00:11]} a6 {[%emt 0:00:18]} 3. c4 {[%emt 0:00:17]} Nc6 {[%emt 0:00:15]} 4. d4 {[%emt 0:00:07]} cxd4 {[%emt 0:00:07]} 5. Nxd4 {[%emt 0:00:05]} e5 {[%emt 0:00:10]} 6. Nc2 {[%emt 0:00:58]} Bc5 {[%emt 0:00:37]} 7. Bd3 {[%emt 0:02:31]} Nge7 {[%emt 0:02:48]} 8. O-O {[%emt 0:00:44]} O-O {[%emt 0:00:18] The position is equal.} 9. Be3 {[%emt 0:00:51]} d6 {[%emt 0:00:40]} 10. Nc3 {[%emt 0:01:11]} Be6 {[%emt 0:03:23]} 11. Nd5 {[%emt 0:01:18]} Rc8 {[%emt 0:10:18]} 12. Kh1 {[%emt 0:05:52]} Bxe3 {[%emt 0:27:30]} 13. Ncxe3 {[%emt 0:04:30]} Bxd5 {[%emt 0:01:38]} 14. exd5 {[%emt 0:04:15]} Nd4 {[%emt 0:03:07]} 15. f4 {[%emt 0:01:15]} (15. Qh5 f5 $15) 15... f5 {[%emt 0:07:59]} 16. Rc1 {[%emt 0:02:07]} Qb6 {[%emt 0:03:37]} 17. Nc2 {[%emt 0:03:31]} Nxc2 {[%emt 0:02:30]} 18. Rxc2 {[%emt 0:01:54]} e4 {[%emt 0:01:24]} 19. Be2 {[%emt 0:00:19]} Rc7 {[%emt 0:03:17]} 20. Qd2 {[%emt 0:00:20]} a5 {[%emt 0:01:08]} 21. Rb1 {[%emt 0:02:42]} Ng6 {[%emt 0:03:28]} 22. g3 {[%emt 0:01:45]} Rfc8 {[%emt 0:01:19]} 23. Rc3 {[%emt 0:01:05]} Nf8 {[%emt 0:02:40]} 24. Rb3 {[%emt 0:01:18]} Qf2 {[%emt 0:00:38] ...Rxc4 is the strong threat.} 25. Rf1 {[%emt 0:01:45]} Qa7 {[%emt 0:00:31]} 26. Ra3 {[%emt 0:01:14]} Ra8 {[%emt 0:03:30]} 27. b4 {[%emt 0:02:44][%cal Ra3a5]} b6 {[%emt 0:00:44]} 28. g4 {[%emt 0:04:52]} g6 {[%emt 0:01:29]} (28... fxg4 $11 29. f5 Nd7) 29. Rg1 $36 {[%emt 0:00:52][%mdl 2048] White has some pressure. White is more active.} fxg4 {[%emt 0:04:45]} 30. Rxg4 {[%emt 0:01:34]} (30. Bxg4 $5 {[%cal Rf4f5]} Rxc4 31. f5 $16) 30... Rf7 {[%emt 0:03:26]} 31. Rg2 {[%emt 0:10:23]} ({White should play} 31. c5 $14) 31... Qb8 {[%emt 0:03:18]} (31... Qc7 $11) 32. c5 $1 $14 {[%emt 0:03:54]} bxc5 {[%emt 0:03:17]} (32... dxc5 $16 33. bxc5 bxc5) 33. bxc5 {[%emt 0:00:17]} dxc5 {[%emt 0:00:38]} 34. d6 $1 {[%emt 0:00:41] Black must now prevent Bc4.} Qb4 {[%emt 0:04:34] [#] Prevents Bc4.} 35. Qc1 {[%emt 0:00:21][%mdl 1024] Strongly threatening Bc4. White has strong compensation.} Kg7 $2 {[%emt 0:00:28] Black cannot hold the game after this.} (35... Rd8 $16 {is a better defense.}) 36. Bc4 $18 {[%emt 0:02:07]} Rf6 {[%emt 0:00:57] Wards off f5} (36... Qb7 37. Bxf7 (37. Rb3 Qc6 $18) 37... Qxf7 38. Qxc5 Qxf4 39. Qd4+ (39. Rxa5 Rxa5 40. Qxa5 Qf1+ 41. Rg1 Qf3+ 42. Rg2 Qf1+ 43. Rg1 Qf3+ 44. Rg2 Qf1+ $11) 39... Qf6 40. Qxf6+ (40. Qxe4 Qxd6 41. Re3 Ra7 $18) 40... Kxf6) 37. Rb3 {[%emt 0:01:04] White is clearly winning.} Qa4 {[%emt 0:00:27]} 38. Rb7+ {[%emt 0:01:00]} Kh8 {[%emt 0:00:50]} 39. Qa1 {[%emt 0:00:27][%cal Ra1f6]} Nd7 {[%emt 0:00:30] [#]} 40. Rxd7 $1 {[%emt 0:00:00][%mdl 576] Remove Defender} Qxd7 {[%emt 0:00:00]} 41. Qxf6+ {[%emt 0:02:28]} Qg7 {[%emt 0:00:17]} 42. Qxg7+ {[%emt 0:00:45]} Kxg7 {[%emt 0:00:02]} 43. d7 {[%emt 0:01:00]} h5 {[%emt 0:05:54] Artfully played by Berke.   Weighted Error Value: White=0.08 (flawless) /Black=0.23 (precise)} 1-0

[Event "European Women-ch 2023"]
[Site "Petrovac"]
[Date "2023.03.23"]
[Round "6.14"]
[White "Pogorelskikh, Sofia"]
[Black "Urh, Zala"]
[Result "0-1"]
[ECO "C60"]
[WhiteElo "2102"]
[BlackElo "2294"]
[Annotator "TA"]
[PlyCount "74"]
[EventDate "2023.03.15"]
[EventType "swiss"]
[EventCountry "MNE"]
[SourceTitle "playchess.com"]
[Source "ChessBase"]
[SourceQuality "1"]
[TimeControl "40/5400+30:1800+30"]

{[%evp 18,74,29,12,25,25,16,20,19,23,24,9,16,8,25,-31,-35,-124,-114,-106,-90,-110,-108,-125,-79,-106,-112,-128,-110,-131,-131,-153,-176,-160,-172,-202,-214,-204,-204,-199,-183,-293,-311,-265,-152,-499,-225,-371,-351,-385,-110,-101,-12,-15,-4,-4,-4,-1981,-1968]} 1. e4 {[%emt 0:00:04]} e5 {[%emt 0:02:09]} 2. Nf3 {[%emt 0:00:07]} Nc6 {[%emt 0:00:09]} 3. Bb5 {[%emt 0:00:13]} a6 {[%emt 0:00:16]} 4. Ba4 {[%emt 0:00:10]} d6 {[%emt 0:00:16]} 5. O-O {[%emt 0:02:38]} Bd7 {[%emt 0:01:09]} 6. c3 {[%emt 0:02:24][%cal Bc2c3,Bc3d4,Bd4d5][%mdl 32]} g6 {[%emt 0:00:44]} 7. d4 {[%emt 0:01:32]} Bg7 {[%emt 0:00:30]} 8. h3 {[%emt 0:02:04]} Nf6 {[%emt 0:00:54]} 9. Re1 {[%emt 0:02:52]} O-O {[%emt 0:00:25]} 10. Nbd2 {[%emt 0:01:27]} exd4 {[%emt 0:00:47] C60: Ruy Lopez: Unusual Black 3rd moves and 3...g6.} 11. cxd4 {[%emt 0:00:55]} Nb4 {[%emt 0:00:22]} 12. Bxd7 {[%emt 0:09:07]} Qxd7 {[%emt 0:00:32] The position is equal.} 13. Qb3 {[%emt 0:01:24] Against Nd3} a5 {[%emt 0:00:42]} 14. a3 {[%emt 0:01:53]} Nc6 {[%emt 0:00:30][%cal Bb4c6,Bc6b8,Bb8a6,Ba6c5][%mdl 32]} 15. d5 {[%emt 0:04:08]} (15. Qxb7 $2 Rfb8 $19) 15... Nb8 {[%emt 0:00:44] [#]} 16. Nf1 $146 {[%emt 0:11:28]} (16. Qxb7 $11 Na6 17. Qc6) ({Predecessor:} 16. Qxb7 Na6 17. Qb3 Rfe8 18. Qc4 Qc8 19. Rb1 Nc5 20. b4 axb4 21. axb4 Na4 22. Rb3 {1-0 Seo,J (2466)-Vestby Ellingsen,M (2368) Kragero op 2022 (9)}) 16... Na6 $15 {[%emt 0:05:42]} 17. Bf4 {[%emt 0:10:58]} (17. Qxb7 Nc5 18. Qc6 Qxc6 19. dxc6 Nfxe4 $17) ({Better is} 17. Qc2 $15) 17... Nc5 $17 {[%emt 0:07:10]} 18. Qc2 {[%emt 0:02:40]} Rfe8 {[%emt 0:07:35][%cal Re8e4][%mdl 64] [#] Deflection} 19. e5 {[%emt 0:22:37]} Nxd5 {[%emt 0:04:48]} 20. Bg3 {[%emt 0:00:50]} Qc6 {[%emt 0:32:26]} (20... Qa4 $142 21. Qxa4 Nxa4) 21. exd6 {[%emt 0:04:26]} cxd6 {[%emt 0:00:12][%cal Oc5e4]} 22. N1d2 {[%emt 0:04:58] Dodges Ne4} a4 {[%emt 0:08:59]} 23. Rac1 {[%emt 0:02:43]} Rxe1+ {[%emt 0:00:57]} 24. Nxe1 {[%emt 0:00:44]} Rc8 {[%emt 0:00:55]} 25. Qb1 {[%emt 0:03:20]} Ne7 {[%emt 0:04:58][%cal Bd5e7,Be7f5,Bf5d4][%mdl 32] Black is more active.} 26. b4 {[%emt 0:02:44]} axb3 {[%emt 0:01:02]} 27. Nxb3 {[%emt 0:00:09]} Nf5 {[%emt 0:01:40]} 28. Bf4 {[%emt 0:03:09]} b6 {[%emt 0:02:14]} 29. Nd2 {[%emt 0:02:16]} (29. Nf3 $142) 29... Nd4 $19 {[%emt 0:01:35]} 30. Kf1 {[%emt 0:00:51] Wards off Ne2} d5 {[%emt 0:02:06]} (30... Ra8 $19 {aiming for ...Qb7.} 31. Ndf3 Nde6) 31. Nd3 $2 {[%emt 0:00:26]} (31. Nef3 $17 {is a better chance.}) 31... Qa8 {[%emt 0:07:33]} (31... Nxd3 $142 32. Rxc6 Rxc6) 32. Nb4 {[%emt 0:00:39]} (32. Be3 $142) 32... Re8 {[%emt 0:05:15] ...Ne2 would be deadly.} ({Inferior is} 32... Qxa3 33. Nxd5 Rf8 34. Nc4 Qd3+ 35. Qxd3 Nxd3 36. Rb1 $17) 33. Be3 {[%emt 0:00:32]} Qxa3 $2 {[%emt 0:00:53]} (33... Ne2 $19 {has better winning chances.} 34. Nf3 (34. Kxe2 $2 {is the wrong capture.} d4 $19 {[%mdl 64] Pin}) 34... d4) 34. Nxd5 $17 {[%emt 0:00:19] [#]} Qa6+ {[%emt 0:00:43]} (34... b5 $1 $17 {White must now prevent ...Nce6.} 35. Rc3 Qa7) 35. Nc4 $11 {[%emt 0:00:32] Threatens to win with Nc7.} Nce6 {[%emt 0:00:31] Against Nc7. Black wants to play ...b5.} 36. Qxb6 {[%emt 0:00:33]} Qa2 {[%emt 0:00:11]} 37. Qb5 $2 {[%mdl 8192]} Nxb5 {Weighted Error Value: White=0.55/Black=0.50} 0-1

[Event "European Women-ch 2023"]
[Site "Petrovac"]
[Date "2023.03.23"]
[Round "6.15"]
[White "Donghvani, Nia"]
[Black "Schulze, Lara"]
[Result "1/2-1/2"]
[ECO "A28"]
[WhiteElo "2025"]
[BlackElo "2277"]
[Annotator "TA"]
[PlyCount "62"]
[EventDate "2023.03.15"]
[EventType "swiss"]
[EventCountry "MNE"]
[SourceTitle "playchess.com"]
[Source "ChessBase"]
[SourceQuality "1"]
[TimeControl "40/5400+30:1800+30"]

{[%evp 9,62,9,14,6,10,8,8,9,5,0,0,0,9,0,0,0,0,0,0,-18,-10,-11,0,0,0,-3,43,-8,-8,-8,-6,-43,-12,-14,-7,-23,-27,-69,-81,-231,-39,-44,-38,-107,-68,-104,-26,-38,-16,-24,-27,-19,-16,-19,11]} 1. c4 {[%emt 0:00:27]} e5 {[%emt 0:00:19]} 2. Nc3 {[%emt 0:00:32]} Nf6 {[%emt 0:00:12]} 3. Nf3 {[%emt 0:00:49]} Nc6 {[%emt 0:00:09]} 4. e4 {[%emt 0:00:03]} Bb4 {[%emt 0:00:06]} 5. d3 {[%emt 0:00:18]} d6 {[%emt 0:00:13]} 6. a3 {[%emt 0:00:13]} Bc5 {[%emt 0:00:07]} 7. b4 {[%emt 0:00:03]} Bb6 {[%emt 0:00:13]} 8. Na4 {[%emt 0:00:19]} Bd4 {[%emt 0:00:16]} 9. Nxd4 {[%emt 0:03:55]} Nxd4 {[%emt 0:02:59]} 10. Be2 {[%emt 0:16:25]} O-O {[%emt 0:01:05]} 11. O-O {[%emt 0:00:16]} Be6 {[%emt 0:11:19]} 12. Nc3 {[%emt 0:04:55]} c6 {[%emt 0:04:23]} 13. f4 {[%emt 0:07:27]} a5 {[%emt 0:04:17]} 14. Rb1 {[%emt 0:03:44]} axb4 {[%emt 0:05:35]} 15. axb4 {[%emt 0:03:12]} exf4 {[%emt 0:16:32]} 16. Rxf4 {[%emt 0:07:53]} Nxe2+ {[%emt 0:09:05]} 17. Qxe2 {[%emt 0:01:04]} d5 {[%emt 0:01:05]} (17... Re8 $11) 18. e5 {[%emt 0:05:20]} (18. exd5 $14 cxd5 19. Rd4) 18... Nd7 $11 {[%emt 0:01:14]} 19. cxd5 {[%emt 0:03:06]} cxd5 {[%emt 0:00:50]} 20. d4 {[%emt 0:06:20]} Nb6 {[%emt 0:07:42]} (20... Qb6 {simplifies} 21. Qb5 Rfc8 22. Qxb6 Nxb6 23. Bd2 Nc4) 21. Qh5 {[%emt 0:07:45]} Qc8 {[%emt 0:08:32]} 22. Bd2 {[%emt 0:02:28]} ({Not} 22. Rh4 $2 Bf5 23. Bb2 Bxb1 24. Nxb1 Qc2 $19) 22... Qc4 {[%emt 0:03:33]} 23. Rh4 {[%emt 0:07:42][%csl Gh4][%cal Rh5h7] [#]} Qd3 {[%emt 0:00:15] ...Rfc8 is the strong threat.} 24. Rf1 {[%emt 0:00:11]} Qg6 $2 {[%emt 0:01:46]} (24... Rfc8 $19 {...Nc4 would be deadly.} 25. Rd1 h6 26. Bxh6 (26. Qf3 $2 Qxf3 27. gxf3 Ra3 $19) 26... Qh7 27. Bxg7 (27. Bd2 $2 Qxh5 {[%mdl 64] Deflection} 28. Rxh5 Bg4 $19) 27... Qxh5 28. Rxh5 Kxg7) 25. Qxg6 $15 {[%emt 0:03:43]} hxg6 {[%emt 0:00:59]} 26. Nb5 {[%emt 0:00:08]} (26. Rhf4 $15) 26... Rfc8 {[%emt 0:10:10] White must now prevent ...Rc2.} 27. Bg5 {[%emt 0:03:04]} Rc2 {[%emt 0:02:45]} (27... Nc4 $17 28. Re1 Bd7) 28. Rhf4 $1 $11 {[%emt 0:00:03]} Nc4 {[%emt 0:04:40] [#] Hoping for ...Ne3. White is weak on the light squares} 29. R4f2 {[%emt 0:02:44]} Rxf2 {[%emt 0:01:16]} 30. Rxf2 {[%emt 0:00:02]} Ra4 {[%emt 0:01:26]} 31. Be7 {[%emt 0:01:10]} Ra1+ {[%emt 0:02:17] Weighted Error Value: White=0.21 (precise) /Black=0.23 (precise)} (31... Ne3 $5 {[%cal Ra4a1]} 32. h3 Nf5 $11) 1/2-1/2

[Event "European Women-ch 2023"]
[Site "Petrovac"]
[Date "2023.03.23"]
[Round "6.15"]
[White "Karaivanova, Petya"]
[Black "Hapala, Elisabeth"]
[Result "0-1"]
[ECO "B49"]
[WhiteElo "1875"]
[BlackElo "2072"]
[Annotator "TA"]
[PlyCount "126"]
[EventDate "2023.03.15"]
[EventType "swiss"]
[EventCountry "MNE"]
[SourceTitle "playchess.com"]
[Source "ChessBase"]
[SourceQuality "1"]
[TimeControl "40/5400+30:1800+30"]

{[%evp 25,126,35,54,0,-3,0,70,67,65,67,69,63,83,79,83,83,95,95,102,52,102,41,92,86,102,97,93,0,105,29,30,30,31,34,43,12,121,0,146,146,143,5,5,0,9,7,6,17,14,4,10,0,0,0,0,0,0,0,16,-89,-94,-204,-206,-200,-193,-335,-328,-339,-322,-666,-664,-676,-657,-656,-656,-644,-643,-622,-631,-692,-692,-737,-679,-682,-672,-674,-665,-668,-664,-641,-603,-615,-610,-605,-597,-593,-587,-581,-561,-769,-600,-4918,-4910]} 1. e4 {[%emt 0:01:22]} c5 {[%emt 0:00:05]} 2. Nf3 {[%emt 0:00:05]} e6 {[%emt 0:00:05]} 3. d4 {[%emt 0:00:08]} cxd4 {[%emt 0:00:04]} 4. Nxd4 {[%emt 0:00:04]} Nc6 {[%emt 0:00:07]} 5. Nc3 {[%emt 0:00:17]} Qc7 {[%emt 0:00:06]} 6. Be3 {[%emt 0:00:34]} a6 {[%emt 0:00:08]} 7. Be2 {[%emt 0:00:11]} Nf6 {[%emt 0:00:13]} 8. O-O {[%emt 0:00:13]} Bb4 {[%emt 0:01:28]} 9. Na4 {[%emt 0:00:13]} Be7 {[%emt 0:00:20]} 10. Nxc6 {[%emt 0:00:09]} bxc6 {[%emt 0:00:08]} 11. Nb6 {[%emt 0:00:03]} Rb8 {[%emt 0:00:05]} 12. Nxc8 {[%emt 0:00:05]} Qxc8 {[%emt 0:00:07]} 13. e5 {[%emt 0:14:49]} Nd5 {[%emt 0:00:52]} 14. Bd4 {[%emt 0:00:33]} (14. Bc1 $1 $14) 14... c5 $11 {[%emt 0:03:59]} 15. c4 {[%emt 0:01:24]} Nf4 {[%emt 0:07:47]} (15... cxd4 $11 16. cxd5 Qc5) 16. Bc3 $1 $14 {[%emt 0:01:13] White is slightly better.} (16. Be3 Ng6 $11) 16... Nxe2+ {[%emt 0:02:16]} 17. Qxe2 {[%emt 0:00:19]} O-O {[%emt 0:02:09]} 18. f4 {[%emt 0:00:31]} f5 {[%emt 0:26:57]} 19. Rf3 {[%emt 0:15:31]} Rf7 {[%emt 0:18:42]} 20. Rd1 {[%emt 0:03:42]} Qc6 {[%emt 0:00:53]} 21. Rfd3 {[%emt 0:07:15]} Rb7 {[%emt 0:00:20]} 22. h3 {[%emt 0:15:32]} (22. b3 $16) 22... Bf8 {[%emt 0:03:12]} (22... a5 $14) 23. Qf2 {[%emt 0:02:42] Black is weak on the dark squares} ({White should try} 23. b3 $16) 23... h6 {[%emt 0:05:54]} (23... a5 $14) 24. b3 $16 {[%emt 0:05:23]} Qe4 {[%emt 0:06:28]} 25. Re3 {[%emt 0:00:24]} Qc6 {[%emt 0:00:01]} 26. Red3 {[%emt 0:06:11]} (26. Kh2 $16) 26... Ra7 {[%emt 0:04:29]} (26... Qe4 $1 $11) 27. g4 {[%emt 0:04:13]} (27. Ba5 $16) 27... fxg4 {[%emt 0:01:45]} 28. hxg4 {[%emt 0:00:06]} Qe4 {[%emt 0:06:36]} 29. Rf3 {[%emt 0:04:23]} Qg6 {[%emt 0:00:41]} 30. Rg3 {[%emt 0:02:24]} Qe4 {[%emt 0:04:36] [#]} (30... a5 $11 {remains equal.}) 31. Rf3 {[%emt 0:05:48]} ({White should play} 31. f5 $1 $16) 31... Rc7 {[%emt 0:00:27]} (31... Qg6 $11 {keeps the balance.}) 32. Re1 {[%emt 0:00:16]} Qg6 {[%emt 0:00:10] [#]} 33. Rg3 {[%emt 0:00:16]} (33. Qg2 $1 $16) 33... Be7 $1 $11 {[%emt 0:02:05] Strongly threatening ...Bh4.} 34. Rg2 {[%emt 0:02:38]} Bg5 {[%emt 0:02:01]} 35. Bd2 {[%emt 0:02:00] With the idea Qg3.} Rc8 $1 {[%emt 0:00:42][%cal Og5f4] And now ...Bxf4! would win.} 36. Qg3 {[%emt 0:01:09]} Be7 {[%emt 0:00:18]} 37. Qe3 {[%emt 0:04:43]} Rcf8 {[%emt 0:00:14]} 38. Rf1 {[%emt 0:00:12]} Bg5 {[%emt 0:02:12]} 39. Qg3 {[%emt 0:01:32]} (39. Qxc5 Bxf4 40. Bxf4 Rxf4 41. Rxf4 Rxf4 42. Qc8+ Kh7 43. Qxd7 Qe4 $15) 39... Be7 {[%emt 0:00:39]} 40. Qe3 {[%emt 0:00:00]} Bg5 {[%emt 0:00:00]} 41. Qg3 {[%emt 0:01:56]} (41. Qxc5 Bxf4 42. Bxf4 Rxf4 43. Rxf4 Rxf4 44. Qc8+ Kh7 45. Qxd7 Qe4 $17) 41... Qe4 {[%emt 0:15:21][%cal Rg5f4]} 42. Re1 {[%emt 0:02:43]} (42. Rgf2 $11 {was the only way to keep the balance.} Be7 43. Qf3) 42... Qd4+ $17 {[%emt 0:00:40]} 43. Qe3 {[%emt 0:05:06]} (43. Be3 $17 Bxf4 44. Bxd4 Bxg3 45. Rxg3 cxd4 46. g5) 43... Rxf4 $19 {[%emt 0:03:22][%cal Of4f1,Bf7f4,Bf4d4,Bd4d3,Bd3h3][%mdl 32]} ({Weaker is} 43... Qxf4 44. Qxc5 Qf3 45. Bxg5 hxg5 46. Qe3 $15) ({Stronger than} 43... Bxf4 44. Qxd4 cxd4 45. Bb4 $17) 44. Qxd4 {[%emt 0:01:44]} Rxd4 {[%emt 0:00:01][%mdl 64] Discovered Attack} 45. Bc3 {[%emt 0:01:22]} (45. Bxg5 {keeps fighting.} hxg5 46. Rf1) 45... Rd3 {[%emt 0:01:59]} 46. Bb2 {[%emt 0:03:31]} Bd2 {[%emt 0:02:07]} 47. Ree2 {[%emt 0:00:50]} (47. Rb1) 47... Be3+ {[%emt 0:01:34] Black is clearly winning.} 48. Kh2 {[%emt 0:00:54]} Bf4+ {[%emt 0:00:25]} 49. Kh1 {[%emt 0:01:09]} Rh3+ {[%emt 0:01:13]} 50. Kg1 {[%emt 0:00:04]} Be3+ {[%emt 0:00:12]} 51. Rxe3 {[%emt 0:00:04]} Rxe3 {[%emt 0:00:02][%mdl 4096] Endgame KRR-KRB} 52. Ba3 {[%emt 0:00:06]} Rxe5 {[%emt 0:01:27]} 53. Rd2 {[%emt 0:00:08]} Rf7 {[%emt 0:02:18]} 54. Kg2 {[%emt 0:00:06]} Rg5 {[%emt 0:00:11]} 55. Kh3 {[%emt 0:00:24]} h5 {[%emt 0:02:41]} 56. gxh5 {[%emt 0:00:13]} Rxh5+ {[%emt 0:00:01]} 57. Kg4 {[%emt 0:00:35]} g6 {[%emt 0:00:27]} 58. Rd6 {[%emt 0:00:08]} Rh2 {[%emt 0:01:58] ( -> ...Rg2+)} 59. Kg3 {[%emt 0:01:01] Wards off Rg2+} Rxa2 {[%emt 0:00:47]} 60. Bxc5 {[%emt 0:00:12]} a5 {[%emt 0:01:50]} 61. Ra6 {[%emt 0:00:15]} Rf5 {[%emt 0:00:44]} 62. Bd4 {[%emt 0:00:27]} Kf7 {[%emt 0:00:31]} 63. b4 {[%emt 0:00:28]} Ra3+ {[%emt 0:00:13] What a bad dream for White.   Weighted Error Value: White=0.37/Black=0.19 (very precise)} 0-1